{"text_format":"1","workbook":"xlsx","n_sheets":5,"sheets":["Recto","Machinerie","Verso","DATA","CODES 2022"],"not_rendered":{"charts":0,"images":3,"macros":1,"external_links":0,"defined_names":5,"comments":0,"pivot_tables":0},"unopened":[],"bounds":{"document_bytes":16777216,"sheet_cells":100000,"rows_first":2000,"rows_last":500,"rows_between":2000,"halvings":0,"cell_chars":16384,"cell_head_chars":4096},"cells_cut":0,"cells_raw":0,"read":"whole","date_system":"1900"}

{"sheet":"Recto","index":0,"n_rows":36,"n_cols":66,"rows_kept":36,"cut":false,"hidden":false,"merged":[[15,57,18,57],[19,57,22,57],[23,57,26,57],[7,58,10,61],[11,58,14,61],[15,58,18,61],[19,58,22,61],[23,58,26,61],[7,57,10,57],[11,57,14,57],[4,0,8,1],[9,3,9,6],[0,0,3,1],[7,3,7,6],[35,47,35,51],[4,3,4,6],[0,8,0,48],[0,49,0,51],[1,49,1,51],[1,8,1,48],[3,2,3,6],[35,14,35,36],[35,3,35,13],[5,3,5,6],[4,48,8,48],[35,0,35,1],[22,49,22,51],[0,2,0,6],[3,49,3,51],[5,50,5,51],[7,49,8,51],[2,8,2,48],[3,8,3,48],[4,49,4,51],[6,50,6,51],[2,49,2,51],[6,3,6,6],[4,2,9,2],[8,3,8,6],[2,2,2,6],[1,2,1,6]]}
[null,null,"Contremaitre:",null,null,null,null,null,"Guy Racine",null,null,null,null,null,null,null,null,null,null,null,null,null,null,null,null,null,null,null,null,null,null,null,null,null,null,null,null,null,null,null,null,null,null,null,null,null,null,null,null,{"$f":"PROPER(TEXT(I2,\"jjjj\"))","v":"Mardi"}]
[null,null,"Date:",null,null,null,null,null,"2022-05-24",null,null,null,null,null,null,null,null,null,null,null,null,null,null,null,null,null,null,null,null,null,null,null,null,null,null,null,null,null,null,null,null,null,null,null,null,null,null,null,null,{"$f":"IFERROR(INDIRECT(ADDRESS($BI$2,2)),\"\")","v":"GHISLAIN TREMBLAY"},null,null,0,null,{"$f":"IFERROR(INDIRECT(ADDRESS(4,$BJ$2)),\"\")","v":0},null,null,null,null,null,16,12,0]
[null,null,"Projet:",null,null,null,null,null,"Complexe Samuel Hollande",null,null,null,null,null,null,null,null,null,null,null,null,null,null,null,null,null,null,null,null,null,null,null,null,null,null,null,null,null,null,null,null,null,null,null,null,null,null,null,null,{"$f":"IFERROR(VLOOKUP(BC3,TACHES[#Data],2,FALSE),\"\")","v":"Remblai"},null,null,null,null,{"$f":"IFERROR(INDIRECT(ADDRESS(5,$BJ$2)),\"\")","v":"074"}]
[null,null,"N° Projet",null,null,null,null,null,"21-5997 - 19-5708",null,null,null,null,null,null,null,null,null,null,null,null,null,null,null,null,null,null,null,null,null,null,null,null,null,null,null,null,null,null,null,null,null,null,null,null,null,null,null,null,{"$f":"IFERROR(VLOOKUP(BC4,INTERVENTIONS[#Data],2,FALSE),\"\")","v":""},null,null,null,null,{"$f":"IFERROR(INDIRECT(ADDRESS(6,$BJ$2)),\"\")","v":"074"}]
["EMPLOYÉS",null,"MÉTIERS","CODES",null,null,null,null,"016","071","073","074","109","201","201","051","051","051","051","052","061","073","074","101","102","106","150","150","151","155","157","157","201","201","210","214","071","003","012","015","027","075",null,null,"801","801","801","801","TOTAL",{"$f":"IFERROR(VLOOKUP(BC5,SECTEURS[#Data],2,FALSE),\"\")","v":""},null,null,null,null,{"$f":"IFERROR(INDIRECT(ADDRESS(7,$BJ$2)),\"\")","v":0}]
[null,null,null,"SOUS-CODES",null,null,null,null,"MU","AG","074","074",null,"MU","PT","ESC","MU","PL","TR",null,null,"BAF","BAF",null,"PL",null,"BAF","DA","BAF","TR","BAF","DA","MU","PL","MU","PL","053",null,null,null,null,null,null,null,null,null," ",null,null,{"$f":"IF(OR(ISNUMBER(SEARCH({\"A\";\"M\";\"S\"},AY6))),\"Directive\",\"\")","v":""},{"$f":"IFERROR(INDIRECT(ADDRESS(8,$BJ$2)),\"\")","v":0},null,null,null,"Directive"]
[null,null,null,"SECTEURS",null,null,null,null,null,null,null,null,null,"B1","B1","B3","B3","B3","B3","B3","B3","B3","B3","B3","B3","B3","B3","B3","B3","B3","B3","B3","B3","B3","B3","B3","SA",null,null,null,null,null,null,null,null,"SA","B1","B3",null,{"$f":"IF(OR(ISNUMBER(SEARCH({\"1\";\"2\";\"3\";\"4\";\"5\";\"6\";\"7\";\"8\";\"9\"},AY7))),\"# Job\",\"\")","v":"# Job"},{"$f":"IFERROR(INDIRECT(ADDRESS(9,$BJ$2)),\"\")","v":"5708"},null,null,null,"# Job"]
[null,null,null,"DIRECTIVES",null,null,null,null,"A123",null,"M012",null,null,null,null,null,null,null,null,null,null,null,null,null,null,null,null,null,null,null,null,null,null,null,null,null,null,null,null,null,null,null,null,null,null,null,null,null,null,"MACHINERIE",null,null,null,null,null,null,null,"Bobcat"]
[null,null,null,"CHANTIERS",null,null,null,null,"5708","5708","5708","5708","5708",null,null,null,null,null,null,null,null,null,null,null,null,null,null,null,null,null,null,null,null,null,null,null,null,null,null,null,null,null,null,null,"5708"]
[null,{"$f":"COUNTIF(H11:H35,\">0\")","v":7},null,"TOTAL",null,null,null,{"$f":"ROUND(SUMPRODUCT((G11:H35=H11:H35)*(H11:H35)),2)","v":57},{"$f":"SUM(I11:I35)","v":0},0,0,0,0,0,0,0,0,0,0,0,0,0,0,0,0,0,0,0,0,0,0,0,0,0,0,0,0,0,0,0,0,0,0,null,{"$f":"SUM(AS11:AS35)","v":0},{"$f":"SUM(AT11:AT35)","v":0},{"$f":"SUM(AU11:AU35)","v":0},{"$f":"SUM(AV11:AV35)","v":0},{"$f":"SUM(AW11:AW35)","v":0},"NOMS","No","HRS"]
[1,"GUY RACINE",{"$f":"IFERROR(VLOOKUP(B11,OUVRIERS,2,0),\"\")","v":"Man"},6.5,12,12.5,16,{"$f":"IF(B11=\"\",0,E11-D11+G11-F11)","v":9},null,null,null,null,null,null,null,null,null,null,null,null,null,null,null,null,null,null,null,null,null,null,null,null,null,null,null,null,null,null,null,null,null,null,null,null,null,null,null,null,{"$f":"SUM(I11:AV11)","v":0},"Camion",1695,null,null,{"$f":"H11","v":9}]
[2,"DANIEL D'AMOURS","Man",7,12,12.5,15.5,{"$f":"IF(B12=\"\",0,E12-D12+G12-F12)","v":8},null,null,null,null,null,null,null,null,null,null,null,null,null,null,null,null,null,null,null,null,null,null,null,null,null,null,null,null,null,null,null,null,null,null,null,null,null,null,null,null,{"$f":"SUM(I12:AV12)","v":0},"Bobcat",1680,null,null,{"$f":"H12","v":8},null,null,null,"Pelle"]
[3,"SYLVAIN BELLEY","Man",7,12,12.5,15.5,8,null,null,null,null,null,null,null,null,null,null,null,null,null,null,null,null,null,null,null,null,null,null,null,null,null,null,null,null,null,null,null,null,null,null,null,null,null,null,null,null,0,"Bobcat",945,null,null,8,null,null,null,null,null,null,null,null,null,null,null,{"$f":"IF(ISERROR(SEARCH(\"*S*\",AX7)),\"\",\"Directive\")","v":""}]
[4,"PIERRE MADORE","Man",7,12,12.5,15.5,8,null,null,null,null,null,null,null,null,null,null,null,null,null,null,null,null,null,null,null,null,null,null,null,null,null,null,null,null,null,null,null,null,null,null,null,null,null,null,null,null,0,"Marteau SB102",1525,null,null,8]
[5,"STÉPHANE FRENETTE","Man",7,12,12.5,15.5,8,null,null,null,null,null,null,null,null,null,null,null,null,null,null,null,null,null,null,null,null,null,null,null,null,null,null,null,null,null,null,null,null,null,null,null,null,null,null,null,null,0,"Balai Mécanique",1145,null,null,8,null,null,null,null,null,null,null,null,null,null,null,{"$f":"IF(OR(ISNUMBER(SEARCH({\"A\";\"M\";\"S\"},AY7))),\"Directive\",\"\")","v":""}]
[6,"GHISLAIN TREMBLAY","Opé",7,12,12.5,15.5,8,null,null,null,null,null,null,null,null,null,null,null,null,null,null,null,null,null,null,null,null,null,null,null,null,null,null,null,null,null,null,null,null,null,null,null,null,null,null,null,null,0,"Compresseur 375",830,null,null,8,null,null,null,"Marteau"]
[7,"PHILIPPE PELCHAT","Opé",7,12,12.5,15.5,8,null,null,null,null,null,null,null,null,null,null,null,null,null,null,null,null,null,null,null,null,null,null,null,null,null,null,null,null,null,null,null,null,null,null,null,null,null,null,null,null,0,"Kubota KX18",1585,null,null,8]
[8,null,"",null,null,null,null,0,null,null,null,null,null,null,null,null,null,null,null,null,null,null,null,null,null,null,null,null,null,null,null,null,null,null,null,null,null,null,null,null,null,null,null,null,null,null,null,null,0,"Marteau SB102",1305,null,null,0,null,null,null,null,null,null,null,null,null,null,null,{"$f":"IF(OR(ISNUMBER(SEARCH({\"1\";\"2\";\"3\";\"4\";\"5\";\"6\";\"7\";\"8\";\"9\"},AY8))),\"Job\",\"\")","v":""}]
[9,null,"",null,null,null,null,0,null,null,null,null,null,null,null,null,null,null,null,null,null,null,null,null,null,null,null,null,null,null,null,null,null,null,null,null,null,null,null,null,null,null,null,null,null,null,null,null,0,"Marteau SB302",1610,null,null,0]
[10,null,"",null,null,null,null,0,null,null,null,null,null,null,null,null,null,null,null,null,null,null,null,null,null,null,null,null,null,null,null,null,null,null,null,null,null,null,null,null,null,null,null,null,null,null,null,null,0,null,null,null,null,0,null,null,null,"Balai"]
[11,null,"",null,null,null,null,0,null,null,null,null,null,null,null,null,null,null,null,null,null,null,null,null,null,null,null,null,null,null,null,null,null,null,null,null,null,null,null,null,null,null,null,null,null,null,null,null,0," "," "," ",null,0]
[12,null,"",null,null,null,null,0,null,null,null,null,null,null,null,null,null,null,null,null,null,null,null,null,null,null,null,null,null,null,null,null,null,null,null,null,null,null,null,null,null,null,null,null,null,null,null,null,0," "," "," ",null,0]
[13,null,"",null,null,null,null,0,null,null,null,null,null,null,null,null,null,null,null,null,null,null,null,null,null,null,null,null,null,null,null,null,null,null,null,null,null,null,null,null,null,null,null,null,null,null,null,null,0,"19-5708",null,null,null,0]
[14,null,"",null,null,null,null,0,null,null,null,null,null,null,null,null,null,null,null,null,null,null,null,null,null,null,null,null,null,null,null,null,null,null,null,null,null,null,null,null,null,null,null,null,null,null,null,null,0,"Camion",1695,null,null,0,null,null,null,"Camion"]
[15,null,"",null,null,null,null,0,null,null,null,null,null,null,null,null,null,null,null,null,null,null,null,null,null,null,null,null,null,null,null,null,null,null,null,null,null,null,null,null,null,null,null,null,null,null,null,null,0,"Bobcat",1680,null,null,0]
[16,null,"",null,null,null,null,0,null,null,null,null,null,null,null,null,null,null,null,null,null,null,null,null,null,null,null,null,null,null,null,null,null,null,null,null,null,null,null,null,null,null,null,null,null,null,null,null,0,"Bobcat",945,null,null,0]
[17,null,"",null,null,null,null,{"$f":"IF(B27=\"\",0,E27-D27+G27-F27)","v":0},null,null,null,null,null,null,null,null,null,null,null,null,null,null,null,null,null,null,null,null,null,null,null,null,null,null,null,null,null,null,null,null,null,null,null,null,null,null,null,null,0,"Marteau SB102",1525,null,null,0]
[18,null,"",null,null,null,null,0,null,null,null,null,null,null,null,null,null,null,null,null,null,null,null,null,null,null,null,null,null,null,null,null,null,null,null,null,null,null,null,null,null,null,null,null,null,null,null,null,0,"Balai Mécanique",1145,null,null,0]
[19,null,"",null,null,null,null,0,null,null,null,null,null,null,null,null,null,null,null,null,null,null,null,null,null,null,null,null,null,null,null,null,null,null,null,null,null,null,null,null,null,null,null,null,null,null,null,null,0,"Compresseur 375",830,null,null,0,null,null,null,null,null,null,null," "]
[20,null,"",null,null,null,null,0,null,null,null,null,null,null,null,null,null,null,null,null,null,null,null,null,null,null,null,null,null,null,null,null,null,null,null,null,null,null,null,null,null,null,null,null,null,null,null,null,0,"Kubota KX18",1585,null,null,0]
[21,null,"",null,null,null,null,0,null,null,null,null,null,null,null,null,null,null,null,null,null,null,null,null,null,null,null,null,null,null,null,null,null,null,null,null,null,null,null,null,null,null,null,null,null,null,null,null,0,"Marteau SB102",1305,null,null,0]
[22,null,"",null,null,null,null,0,null,null,null,null,null,null,null,null,null,null,null,null,null,null,null,null,null,null,null,null,null,null,null,null,null,null,null,null,null,null,null,null,null,null,null,null,null,null,null,null,0,"Marteau SB302",1610,null,null,0]
[23,null,"",null,null,null,null,0,null,null,null,null,null,null,null,null,null,null,null,null,null,null,null,null,null,null,null,null,null,null,null,null,null,null,null,null,null,null,null,null,null,null,null,null,null,null,null,null,0,"John Deere 50G",1600,null,null,0]
[24,null,"",null,null,null,null,0,null,null,null,null,null,null,null,null,null,null,null,null,null,null,null,null,null,null,null,null,null,null,null,null,null,null,null,null,null,null,null,null,null,null,null,null,null,null,null,null,0,null,null,null,null,0]
[25,null,"",null,null,null,null,0,null,null,null,null,null,null,null,null,null,null,null,null,null,null,null,null,null,null,null,null,null,null,null,null,null,null,null,null,null,null,null,null,null,null,null,null,null,null,null,null,0,null,null,null,null,0]
[null,null,null,null,null,null,null,null,null,null,null,null,null,null,null,null,null,null,null,null,null,null,null,null,null,null,null,null,null,null,null,null,null,null,null,null,null,null,null,null,null,null,null,null,null,null,null,{"$f":"I1","v":"Guy Racine"}]

{"sheet":"Machinerie","index":1,"n_rows":164,"n_cols":5,"rows_kept":164,"cut":false,"hidden":false,"merged":[[0,0,1,0],[0,1,1,1],[0,2,0,4]]}
[null,null,"MACHINERIE"]
[null,null,"NUMÉRO",null,"FAMILLE"]
[]
[null,null,360,"763G-360","010 BOBCAT"]
[null,null,420,"763G-420","010 BOBCAT"]
[null,null,450,"S150-450","010 BOBCAT"]
[null,null,545,"S185-545","010 BOBCAT"]
[null,null,620,"S150-620","010 BOBCAT"]
[null,null,690,"S150-690","010 BOBCAT"]
[null,null,695,"S150-695","010 BOBCAT"]
[null,null,855,"CATERPILLAR 226B-855","010 BOBCAT"]
[null,null,920,"S160-920","010 BOBCAT"]
[null,null,925,"S160-925","010 BOBCAT"]
[null,null,945,"S160-945","010 BOBCAT"]
[null,null,950,"S160-950","010 BOBCAT"]
[null,null,1010,"S160-1010","010 BOBCAT"]
[null,null,1015,"S160-1015","010 BOBCAT"]
[null,null,1020,"S160-1020","010 BOBCAT"]
[null,null,1040,"553-1040","010 BOBCAT"]
[null,null,1095,"S550-1095","010 BOBCAT"]
[null,null,1165,"CASE SR175-1165","010 BOBCAT"]
[null,null,1205,"CASE SR175-1205","010 BOBCAT"]
[null,null,1275,"CASE SR175-1275","010 BOBCAT"]
[null,null,1280,"CASE SR175-1280","010 BOBCAT"]
[null,null,1320,"CASE SV185-1320","010 BOBCAT"]
[null,null,1325,"CASE SV185-1325","010 BOBCAT"]
[null,null,1455,"CASE SV185-1455","010 BOBCAT"]
[null,null,1460,"CASE SV185-1460","010 BOBCAT"]
[null,null,1505,"CASE TR340-1505","010 BOBCAT"]
[null,null,1575,"CASE TR310-1575","010 BOBCAT"]
[null,null,1580,"KUBOTA SSV65-1580","010 BOBCAT"]
[null,null,1680,"CASE SV185-1680","010 BOBCAT"]
[null,null,1685,"CASE SV185B-1685","010 BOBCAT"]
[null,null,111,"BUCKET GUILLOTINE-111","011 AC.BOB.GUILLOTINE"]
[null,null,112,"BUCKET GUILLOTINE-112","011 AC.BOB.GUILLOTINE"]
[null,null,113,"BUCKET GUILLOTINE-113","011 AC.BOB.GUILLOTINE"]
[null,null,121,"FOURCHE PAVAGE-121","012 AC.BOB.FOURCHE"]
[null,null,122,"FOURCHE PAVAGE-122","012 AC.BOB.FOURCHE"]
[null,null,123,"FOURCHE PAVAGE-123","012 AC.BOB.FOURCHE"]
[null,null,124,"FOURCHE PAVAGE-124","012 AC.BOB.FOURCHE"]
[null,null,136,"ARRACHE MEMBRANE ROUGE-136","013 AC.BOB.MEMBRANE"]
[null,null,131,"ASSIETTE-131","013 AC.BOB.MEMBRANE"]
[null,null,132,"ASSIETTE-132","013 AC.BOB.MEMBRANE"]
[null,null,133,"ASSIETTE-133","013 AC.BOB.MEMBRANE"]
[null,null,760,"SCARIFICATEUR-760","015 ACCESS. BOBCAT"]
[null,null,495,"BOBCAT 322-495","020 PELLE"]
[null,null,580,"KUBOTA KX41-580","020 PELLE"]
[null,null,615,"CATERPILLAR 304-615","020 PELLE"]
[null,null,750,"KOMATSU PC27-750","020 PELLE"]
[null,null,755,"KUBOTA KX41-755","020 PELLE"]
[null,null,865,"KOMATSU PC35-865","020 PELLE"]
[null,null,900,"CATERPILLAR 304-900","020 PELLE"]
[null,null,1110,"KUBOTA KX018-1110","020 PELLE"]
[null,null,1300,"KUBOTA KX71-1300","020 PELLE"]
[null,null,1390,"CASE CX145-1390","020 PELLE"]
[null,null,1450,"JOHN DEERE 35G-1450","020 PELLE"]
[null,null,1475,"KUBOTA U17-1475","020 PELLE"]
[null,null,1480,"KUBOTA U25-1480","020 PELLE"]
[null,null,1490,"JOHN DEERE 35G-1490","020 PELLE"]
[null,null,1585,"KUBOTA KX018-1585","020 PELLE"]
[null,null,1600,"JOHN DEERE 50G-1600","020 PELLE"]
[null,null,1605,"YANMAR VIO25-1605","020 PELLE"]
[null,null,1750,"BOBCAT E20-1750","020 PELLE"]
[null,null,1550,"DENT DEFONCEUSE CX 145-1550","025 ACCESS. PELLE"]
[null,null,2041,"DENT DÉFONC.CATERPILLAR-2041","025 ACCESS. PELLE"]
[null,null,540,"KUBOTA KXB400-540","030 MARTEAU BOBCAT"]
[null,null,730,"KUBOTA KXB400-730","030 MARTEAU BOBCAT"]
[null,null,735,"KUBOTA KXB400 -735","030 MARTEAU BOBCAT"]
[null,null,740,"KUBOTA KXB400-740","030 MARTEAU BOBCAT"]
[null,null,1235,"BOBCAT HB680-1235","030 MARTEAU BOBCAT"]
[null,null,1240,"BOBCAT HB680-1240","030 MARTEAU BOBCAT"]
[null,null,1305,"EPIROC SB102-1305","030 MARTEAU BOBCAT"]
[null,null,1415,"BOBCAT HB680-1415","030 MARTEAU BOBCAT"]
[null,null,1445,"BOBCAT HB680-1445","030 MARTEAU BOBCAT"]
[null,null,1525,"EPIROC SB102-1525","030 MARTEAU BOBCAT"]
[null,null,1530,"EPIROC SB102-1530","030 MARTEAU BOBCAT"]
[null,null,1535,"EPIROC SBU160-1535","030 MARTEAU BOBCAT"]
[null,null,1625,"EPIROC SBU160-1625","030 MARTEAU BOBCAT"]
[null,null,1630,"EPIROC SBU160-1630","030 MARTEAU BOBCAT"]
[null,null,480,"KUBOTA KXB400-480","040 MARTEAU PELLE"]
[null,null,555,"KUBOTA KXB400-555","040 MARTEAU PELLE"]
[null,null,610,"KUBOTA KXB400-610","040 MARTEAU PELLE"]
[null,null,780,"CATERPILLAR H55DS-780","040 MARTEAU PELLE"]
[null,null,930,"CATERPILLAR H55DS-930","040 MARTEAU PELLE"]
[null,null,1060,"ATLAS COPCO SB102-1060","040 MARTEAU PELLE"]
[null,null,1065,"ATLAS COPCO SB102-1065","040 MARTEAU PELLE"]
[null,null,1170,"ATLAS COPCO SB102-1170","040 MARTEAU PELLE"]
[null,null,1175,"ATLAS COPCO SB102-1175","040 MARTEAU PELLE"]
[null,null,1245,"ATLAS COPCO SB102-1245","040 MARTEAU PELLE"]
[null,null,1250,"ATLAS COPCO SB102-1250","040 MARTEAU PELLE"]
[null,null,1310,"ATLAS COPCO SB102-1310","040 MARTEAU PELLE"]
[null,null,1400,"INDECO H500-1400","040 MARTEAU PELLE"]
[null,null,1495,"INDECO H500-1495","040 MARTEAU PELLE"]
[null,null,1500,"ATLAS COPCO SB202-1500","040 MARTEAU PELLE"]
[null,null,1510,"ATLAS COPCO SB202-1510","040 MARTEAU PELLE"]
[null,null,1560,"EPIROC SBU160-1560","040 MARTEAU PELLE"]
[null,null,1565,"EPIROC SB202-1565","040 MARTEAU PELLE"]
[null,null,1610,"EPIROC SB302-1610","040 MARTEAU PELLE"]
[null,null,1615,"EPIROC SB202-1615","040 MARTEAU PELLE"]
[null,null,1620,"EPIROC SB102-1620","040 MARTEAU PELLE"]
[null,null,1735,"ATLAS COPCO SB152-1735","040 MARTEAU PELLE"]
[null,null,1740,"ATLAS COPCO SB152-1740","040 MARTEAU PELLE"]
[null,null,860,"MACHOIRE DARDA DRC 560-860","041 MACHOIRE"]
[null,null,1295,"MACHOIRE DARDA CC520-1295","041 MACHOIRE"]
[null,null,1440,"MACHOIRE EPIROC-1440","041 MACHOIRE"]
[null,null,1485,"MACHOIRE DARDA CC580-1485","041 MACHOIRE"]
[null,null,135,"TOYOTA FG25-135","050 LIFT + MERLO"]
[null,null,300,"TOYOTA BUREAU MONTRÉAL-300","050 LIFT + MERLO"]
[null,null,340,"CHARIOT LIFT HYSTER H50XM-340","050 LIFT + MERLO"]
[null,null,490,"CHARIOT HYSTER H110XL-490","050 LIFT + MERLO"]
[null,null,980,"MERLO-980","050 LIFT + MERLO"]
[null,null,1155,"TOYOTA 8FGU25-1155","050 LIFT + MERLO"]
[null,null,1350,"CHARIOT DIECI ICARUS 40.17-1350","050 LIFT + MERLO"]
[null,null,1435,"MERLO-1435","050 LIFT + MERLO"]
[null,null,205,"POMPE UHP 225G NLB ÉLECTRIQUE-205","060 HYDRO DEMOL."]
[null,null,220,"POMPE HP 20250 NLB DIÉSEL-220","060 HYDRO DEMOL."]
[null,null,330,"POMPE HP 20600 NLB ÉLECTRIQUE-330","060 HYDRO DEMOL."]
[null,null,515,"POMPE HP 20600 NLB DIESEL-515","060 HYDRO DEMOL."]
[null,null,880,"ROBOT AQUAJET 710V EVOLUTION-880","060 HYDRO DEMOL."]
[null,null,1080,"ROBOT AQUAJET 710V EVOLUTION-1080","060 HYDRO DEMOL."]
[null,null,1380,"POMPE NLB 40225G-1380","060 HYDRO DEMOL."]
[null,null,1540,"POMPE NLB 20305-1540","060 HYDRO DEMOL."]
[null,null,1595,"DRIVE 300HP 600V PMR-1595","060 HYDRO DEMOL."]
[null,null,1635,"DRIVE 700HP 600V DRACON-1635","060 HYDRO DEMOL."]
[null,null,1700,"SPINJET 40K-1700","060 HYDRO DEMOL."]
[null,null,1760,"SPINJET HONDA-1760","060 HYDRO DEMOL."]
[null,null,1765,"SPINJET HONDA-1765","060 HYDRO DEMOL."]
[null,null,890,"NACELLE GÉNIE S45-890","080 NACELLE"]
[null,null,895,"NACELLE SNORKEL TBA 60-895","080 NACELLE"]
[null,null,985,"NACELLE GÉNIE S60-985","080 NACELLE"]
[null,null,530,"375 CFM-530","090 COMPRESSEUR"]
[null,null,560,"COMPRESSEUR 100HP-560","090 COMPRESSEUR"]
[null,null,600,"COMPRESSEUR LS 60-600","090 COMPRESSEUR"]
[null,null,685,"COMPRESSEUR 185 CFM-685","090 COMPRESSEUR"]
[null,null,825,"COMPRESSEUR 375 CFM-825","090 COMPRESSEUR"]
[null,null,830,"COMPRESSEUR 375 CFM-830","090 COMPRESSEUR"]
[null,null,960,"COMPRESSEUR 375 CFM-960","090 COMPRESSEUR"]
[null,null,1050,"185 CFM-1050","090 COMPRESSEUR"]
[null,null,1075,"COMPRESSEUR 375 CFM-1075","090 COMPRESSEUR"]
[null,null,395,"BALAI BOBCAT 60\"-395","100 BALAI MECANIQUE"]
[null,null,790,"BALAI BOBCAT 60\"-790","100 BALAI MECANIQUE"]
[null,null,791,"BALAI BOBCAT 60\"-791","100 BALAI MECANIQUE"]
[null,null,970,"BALAI BOBCAT 60\"-970","100 BALAI MECANIQUE"]
[null,null,1025,"BALAI BOBCAT 74\"-1025","100 BALAI MECANIQUE"]
[null,null,1145,"BALAI BOBCAT 72\"-1145","100 BALAI MECANIQUE"]
[null,null,1265,"BALAI BOBCAT 60\"-1265","100 BALAI MECANIQUE"]
[null,null,1410,"BALAI BOBCAT 72\"-1410","100 BALAI MECANIQUE"]
[null,null,1515,"BALAI BOBCAT 72\"-1515","100 BALAI MECANIQUE"]
[null,null,1520,"BALAI BOBCAT 72\"-1520","100 BALAI MECANIQUE"]
[null,null,1655,"BALAI BOBCAT 72\"-1655","100 BALAI MECANIQUE"]
[null,null,1405,"GRAPPLE BUCKET BOBCAT 74''-1405","105 GRAPPINS"]
[null,null,1420,"GRAPPLE BUCKET BOBCAT 74''-1420","105 GRAPPINS"]
[null,null,1425,"GRAPPLE BUCKET CATERPILLAR 65''-1425","105 GRAPPINS"]
[null,null,1720,"GRAPPLE BUCKET HLA 72\"-1720","105 GRAPPINS"]
[null,null,1725,"GRAPPLE BUCKET HLA72\"-1725","105 GRAPPINS"]
[null,null,460,"WHITEMAN-460","110 BROUETTE"]
[null,null,475,"WHITEMAN-475","110 BROUETTE"]
[null,null,1030,"YANMAR C30-1030","110 BROUETTE"]
[null,null,1035,"YANMAR C30-1035","110 BROUETTE"]
[null,null,1105,"MULTIQUIP WBH 16-1105","110 BROUETTE"]
[null,null,1360,"MULTIQUIP WBH 16 EF-1360","110 BROUETTE"]
[null,null,745,"LOADER CATERPILLAR 908 H-745","120 LOADER"]
[null,null,835,"LOADER CATERPILLAR 908 H-835","120 LOADER"]
[null,null,1545,"CASE 221F-1545","120 LOADER"]

{"sheet":"Verso","index":2,"n_rows":35,"n_cols":14,"rows_kept":35,"cut":false,"hidden":true,"merged":[[0,0,0,7],[1,0,2,2],[1,3,2,3],[1,4,2,4],[1,5,1,7],[2,5,2,7],[3,0,3,2],[3,5,3,7],[4,0,4,2],[4,5,4,7],[5,0,5,2],[5,5,5,7],[13,0,13,7],[6,0,6,2],[6,5,6,7],[7,0,7,2],[7,5,7,7],[8,0,8,2],[8,5,8,7],[9,0,9,2],[9,5,9,7],[10,0,10,7],[11,0,11,7],[12,0,12,7],[25,0,25,7],[14,0,14,7],[15,0,15,7],[16,0,16,7],[17,0,17,7],[18,0,18,7],[19,0,19,7],[20,0,20,7],[21,0,21,7],[22,0,22,7],[23,0,23,7],[24,0,24,7],[32,0,32,7],[33,0,33,7],[34,0,35,4],[34,5,35,7],[26,0,26,7],[27,0,27,7],[28,0,28,7],[29,0,29,7],[30,0,30,7],[31,0,31,7]]}
[]
["SOUS-TRAITANTS",null,null,"NOMBRE EMPLOYÉS","HEURES","REMARQUES           CCQ          CSST"]
[null,null,null,null,null,"ACCIDENTS "]
[]
[]
[]
[]
[]
[]
[]
["TRAVAUX EFFECTUÉS :",null,null,null,null,null,null,null,null,null," "]
[]
[]
[]
[null,null,null,null,null,null,null,null,null,null,null,null,null," "]
[]
[]
[]
[]
[]
[]
[]
[]
[]
[]
[]
[]
[]
[]
[]
[]
[]
[]
["JOUR"]
[null,null,null,null,null,{"$f":"Recto!#REF!","v":{"$error":"#REF!"}}]

{"sheet":"DATA","index":3,"n_rows":242,"n_cols":20,"rows_kept":242,"cut":false,"hidden":false,"merged":[]}
["NOMS","Métiers","CODES","TACHES","TYPES","TYPES D'INTERVENTION",null,"Contremaitres",null,null,null,null,null,null,null,null,null,null,"SECTEURS","LIBELLES"]
["ANDREW DUCHARME","Men","000","Organisation Chantier","AG","Acier Galvanisé",null,"Benoit Pronovost",null,null,null,null,null,null,null,null,null,null,"A","Niveau A"]
["BENOIT PRONOVOST","Men","001","Mobilisation","AMI","Amiante",null,"Dominic Francis",null,null,null,null,null,null,null,null,null,null,"ASC","Ascenceur"]
["BÉTOXY","Cim","002","Démobilisation","ARM","Armature",null,"Felix Bouchard",null,null,null,null,null,null,null,null,null,null,"B","Niveau B"]
["BOBBY LAROUCHE","Opé","003","Réception Matériel","ASC","Ascenceur",null,"Frederic Beaulieu",null,null,null,null,null,null,null,null,null,null,"B1","Bloc 1"]
["BRANDON DESCHENES","Men","004","Retour Matériel","BAF","Boite Fleur",null,"Guy Racine",null,null,null,null,null,null,null,null,null,null,"B2","Bloc 2"]
["CDX ADAM DUFOUR","Men","005","Étaiement","BAL","Balcon",null,"Hugues Turcotte",null,null,null,null,null,null,null,null,null,null,"B3","Bloc 3"]
["CDX ALEXANDRE IMBEAULT","Men","006","Mur Protection","BÉ","Béton",null,"Jean-Sebastien Lafond",null,null,null,null,null,null,null,null,null,null,"B4","Bloc 4"]
["CDX GABRIEL GENOIS","Men","007","Protection Générale","BL","Base lampadaire",null,"Martin Anctil",null,null,null,null,null,null,null,null,null,null,"B5","Bloc 5"]
["CDX KEVIN DUNN","Men","008","Protection Temporaire","BOL","Bolard",null,"Martin Laliberté",null,null,null,null,null,null,null,null,null,null,"B6","Bloc 6"]
["CDX MARTIN GAGNON","Men","009","Accès Et Entretien","BOR","Bordure",null,"Mathieu Nadeau",null,null,null,null,null,null,null,null,null,null,"C","Niveau C"]
["CDX MAXIME TREMBLAY","Men","010","Clotures Temporaires","BRI","Briques",null,"Maxime Parent",null,null,null,null,null,null,null,null,null,null,"D","Niveau D"]
["CDX MICHAEL BEAUREGARD","Men","011","Échafaudage","BUC","Bucket Coulée",null,"Nicolas Beaudin",null,null,null,null,null,null,null,null,null,null,"E","Niveau E"]
["CDX SEBASTIEN MATTE","Men","012","Swing Stage","CA","Canniveau",null,"Serge Grandmont",null,null,null,null,null,null,null,null,null,null,"G1","Garage niv. 1"]
["CDX SIMON-PIERRE LACHANCE","Men","013","Garde-Corps","CE","Céramique",null,"Steve Molloy",null,null,null,null,null,null,null,null,null,null,"G2","Garage niv. 2"]
["CDX THIERRY GAGNON","Men","014","Sécurité","CH","Chape",null,"Stevens Paquet",null,null,null,null,null,null,null,null,null,null,"G3","Garage niv. 3"]
["CHRISTIAN CADRIN","Opé","015","Ent Mécanique Chantiers","CHA","Chapiteau",null,"Yanick Martineau",null,null,null,null,null,null,null,null,null,null,"G4","Garage niv. 4"]
["DANIEL D'AMOURS","Man","016","Enlever équip. Existants","CLE","Clé",null,null,null,null,null,null,null,null,null,null,null,null,"P1","Parking 1"]
["DANIEL GAUDREAULT","Man","017","Installer équip. Existants","CO","Colonnes",null,null,null,null,null,null,null,null,null,null,null,null,"P2","Parking 2"]
["DANIEL ROBERT","Men","018","Aménag. Locaux Chantier","COF","Coffrage",null,null,null,null,null,null,null,null,null,null,null,null,"P3","Parking 3"]
["DAVE VAUDREUIL","Opé","019","Sondage, Marquage, Relevé","CR","Chasses-Roues",null,null,null,null,null,null,null,null,null,null,null,null,"P4","Parking 4"]
["DOMINIC FRANCIS","Cim","020","Accueil De Chantier","CRE","Crépi",null,null,null,null,null,null,null,null,null,null,null,null,"RAM","Rampe"]
["ÉLIE MERCIER","Men","021","Arpentage","DA","Dalle",null,null,null,null,null,null,null,null,null,null,null,null,"RC","Rez De Chausée"]
["ÉRIC GUAY","Men","022","Signaleur","DAS","Dalle Au Sol",null,null,null,null,null,null,null,null,null,null,null,null,"SA","Semi Abrité"]
["FRANCIS CHAMBERLAND","Opé","023","Installer Signalisation","DD","Dessus Dalle",null,null,null,null,null,null,null,null,null,null,null,null,"ST","Salle Thermique"]
["FRANCOIS D'AMOUR","Men","024","Formation Sur Chantiers","DR","Drain"]
["FRÉDÉRIC SOUCY","Men","027","Manipulation / Déplacement Stock","ECH","Échafaudage"]
["GÉRALD GAGNON","Cim","028","Injection Epoxy","EDCB","Étaiement Dalle Coulée"]
["GHISLAIN TREMBLAY","Opé","029","Percer Trous Béton Injecté","ESC","Escalier"]
["GUILLAUME SOUCY","Men","030","Grout Pour Structure d'acier","EST","Estrade"]
["GUY BOLDUC","Man","050","Démolition Générale","FC","Fibro Ciment"]
["GUY RACINE","Man","051","Dém. Marteau Piqueur","FEN","Fenetre"]
["HUGUES TURCOTTE","Men","052","Dém. Tramac","GC","Garde-Corps"]
["IAN CORRIVEAU","Men","053","Dém. Pelle (Sans Tramac)","GGP","Grille Gratte-Pied"]
["JACQUES DURET","Opé","054","Dém. Machoire","GRA","Gravier"]
["JEAN BEAUCAGE","Man","055","Scarification","HSS","HSS"]
["JEAN FORTIER","Men","056","Curetage Béton (Bobcat)","HYD","Hydro"]
["JEAN-FRANCOIS JOLICOEUR","Opé","057","Enlev. Membrane (Bobcat)","JC","Joint Contrôle"]
["JEAN-JACQUES RICHARD","Cim","058","Curetage Béton","JD","Joint Dilatation"]
["JEAN-SÉBASTIEN LAFOND","Men","059","Démolition Métaux","MAUT","Membarne Autocollante"]
["JEROME AUDET","Men","060","Démolition Toitures","MBL","Murs De Blocs"]
["JONATHAN ARSENAULT","Men","061","Sciage / Trait Scie","ME","Membrane"]
["JONATHAN PETITCLERC","Men","062","Enlèvem. D'isolant","MEC","Démolition Mécanique"]
["JULIEN RICHARD","Man","063","Dém. Mécanique","MG20","MG20"]
["KEVEN FRIGON","Men","064","Bouchardage","MSEC","Matériaux Secs"]
["LUC GODIN","Opé","070","Arrosage Pour Démolition","MU","Mur"]
["LUC PICARD","Man","071","Charger Camions","MURE","Muret"]
["MANEXCO JEAN-MICHEL LAJOIE","Men","072","Charger Conteneurs","NEI","Neige"]
["MANEXCO MAXIME ROUSSEAU","Men","073","Compaction","OSB","OSB"]
["MARLENE TREMBLAY","Man","074","Remblai","PAR","Parapet"]
["MARTIN ANCTIL","Opé","075","Excavation","PASS","Passerelle"]
["MARTIN FILLION","Opé","100","Lavage","PAT","Patches"]
["MARTIN LALIBERTÉ","Opé","101","Nettoyage De Chantier","PAV","Pavage"]
["MATHIEU NADEAU","Cim","102","Nettoyage Armature","PAVÉ","Pavé"]
["MAXIME PARENT","Mac","103","Nettoyage À L'air","PE","Pleine Épaisseur"]
["MAXIMUM ACOUSTIQUE DOMINIQUE DESROCHER ","Men","104","Lavage À Pression","PIS","Piscine"]
["MAXIMUM ACOUSTIQUE LUC FOURNIER","Men","105","Nett. Balai Mécanique","PL","Plafond"]
["MGH","Men","106","Nett. Rebuts Béton","PLB","Plancher Bois"]
["MGH ANTHONY VÉZINA","Men","107","Nett. Rebuts Pavage","PO","Poutres"]
["MGH FRÉDÉRIC MALTAIS","Men","108","Nett. Rebuts Excavation","RAM","Rampe"]
["MGH HUGO FISET","Men","109","Nett. Rebuts Secs","RE","Remblai"]
["MGH MATHIEU TREMBLAY","Men","127","Mobil / Install. Hydro","ROC","Roc"]
["MGH MAXIME HARVEY","Men","128","Hydro Lav. Pression","SAB","Sable"]
["MGH SIMON GRAVEL","Men","129","Spinjet","SE","Semelle"]
["MICHEL BÉLANGER","Man","130","Robot","TE","Terre"]
["MICHEL LACASSE","Man","131","Lance - Gun","TOI","Toiture"]
["NICOLAS BEAUDIN","Men","132","Nettoyage Apres Spinjet","TR","Transition"]
["NICOLAS TRÉPANIER","Cim","133","Hydro Nett. Armature","TRO","Trottoir"]
["PHILIPPE PELCHAT","Opé","134","Hydro - Enlev. Isolant","TYV","Tyvek"]
["PIERRE LAROCHE","Opé","135","Hydro - Enlev. Peinture"]
["PIERRE MADORE","Man","136","Bassin De Filtration"]
["PIERRE-ANDRÉ JACQUES","Opé","150","Poser Armature"]
["RÉJEAN THIBAULT","Opé","151","Ancrages Pour Armature"]
["RÉMY GOSSELIN","Opé","152","Ancrages À Gunite"]
["RICHARD PAQUET","Opé","153","Treillis Métallique"]
["RICHARD PRIEUR","Opé","154","Poser Manchons"]
["RODRIGUE PRUNEAU","Men","155","Couper Armature Existante"]
["SERGE BEAUDOIN","Men","156","Ancrages Mécaniques"]
["SERGE BOILY","Man","157","Ancrages Dans L'Époxy"]
["SERGE GRANDMONT","Man","200","Décoffrage"]
["STÉPHANE FRENETTE","Man","201","Coffrage"]
["STEVE FRÉGEAU","Man","202","Bétonnage (Camion)"]
["STEVE LETOURNEAU","Men","203","Bétonnage (En Sac)"]
["STEVE MOLLOY","Cim","204","Bétonnage Sacs (Pompe)"]
["STEVE PETIT","Cim","205","Béton Remblai"]
["SYLVAIN BELLEY","Man","206","Béton Maigre"]
["TOMMY NOEL","Man","207","Crépi"]
["WILLIAM FORGUES","Men","208","Resurfaçage Au Mortier"]
["YANICK MARTINEAU","Men","209","Murissement"]
[null,null,"210","Plastrage"]
[null,null,"211","Béton Projeté"]
[null,null,"212","Meulage De Béton"]
[null,null,"214","Anti-Corrosion Armature"]
[null,null,"215","Inhibiteur De Corrosion"]
[null,null,"216","Poser Scellant À Béton"]
[null,null,"217","Liant A Béton"]
[null,null,"220","Briques, Pierres"]
[null,null,"221","Blocs De Béton"]
[null,null,"222","Rejointements"]
[null,null,"223","Pose D'Allèges"]
[null,null,"224","Pose Fer-Angles"]
[null,null,"225","Démol. (Bri, Pierres, Blocs)"]
[null,null,"226","Lavage (Bri, Pierres, Blocs)"]
[null,null,"227","Manutention (Bri, Pierres, Blocs)"]
[null,null,"228","Joints de scellants (Bri, Pi, Blocs)"]
[null,null,"229","Membrane Autocollantes"]
[null,null,"230","Solins"]
[null,null,"250","Blastrac"]
[null,null,"251","Meulage de Dalle"]
[null,null,"252","Membrane (Pose)"]
[null,null,"253","Membrane Soudée"]
[null,null,"254","Lamelles De Carbone"]
[null,null,"255","Époxy"]
[null,null,"256","Miracote, Enduit, Adex, Dryvit"]
[null,null,"257","Resurf. époxy - Membrane"]
[null,null,"258","Ouvrir Fissure"]
[null,null,"259","Remplir Fissure"]
[null,null,"260","Enlevement Membrane"]
[null,null,"265","Nettoyage Aspirateur"]
[null,null,"271","HTC Enl. Membrane"]
[null,null,"272","HTC Polissage "]
[null,null,"273","HTC Enl. De Béton"]
[null,null,"274","HTC Nettoyage"]
[null,null,"300","Travaux Divers"]
[null,null,"301","Enlèvement De Pavage"]
[null,null,"302","Pose De Pavage"]
[null,null,"303","Déficiences"]
[null,null,"304","Poser Joint D'expansion"]
[null,null,"305","Chute À Déchets"]
[null,null,"306","Jet De Sable"]
[null,null,"307","Récupération De Matériaux"]
[null,null,"308","Soudure"]
[null,null,"309","Métaux Ouvrés"]
[null,null,"310","Test D'eau"]
[null,null,"311","Poser Miradrain"]
[null,null,"312","Géotextile"]
[null,null,"313","Gouttieres"]
[null,null,"314","Enlever Plomberie"]
[null,null,"315","Drainage Temporaire"]
[null,null,"316","Installer Drains, Caniveau"]
[null,null,"317","Plomberie"]
[null,null,"318","Electricité"]
[null,null,"319","Temporaire Électrique"]
[null,null,"320","Caméra De Chantier"]
[null,null,"321","Lignage"]
[null,null,"322","Terrassement"]
[null,null,"325","Caméra De Chantier"]
[null,null,"330","Forage Ancrages Au Roc"]
[null,null,"331","Installer Ancrages Au Roc"]
[null,null,"332","Injection Ancrages Au Roc"]
[null,null,"333","Poser Filet Métallique"]
[null,null,"350","Travaux Supplémentaires"]
[null,null,"351","Travaux a L'Heure"]
[null,null,"352","Commission"]
[null,null,"355","Étaiement Spécial"]
[null,null,"361","Déneigement"]
[null,null,"362","Protection Chauffage"]
[null,null,"363","Ravitaillement Chauffage"]
[null,null,"364","Installer Chauffage"]
[null,null,"365","Protection Temps Froid"]
[null,null,"400","A-P- Organisation"]
[null,null,"401","A-P- Douche Et Vestiaires"]
[null,null,"402","A-P- Mur Protection"]
[null,null,"403","A-P- Étaiement"]
[null,null,"404","A-P- Nettoyage"]
[null,null,"405","A-P- Protection Temporaire"]
[null,null,"406","A-P- Chute À Déchets"]
[null,null,"407","A-P- Encapsulation"]
[null,null,"408","A-P- Couper Armature Existante"]
[null,null,"409","A-P- Nettoyage D'armature"]
[null,null,"410","A-P- Lavage A Pression"]
[null,null,"411","A-P- Sciage, Trait De Scie"]
[null,null,"412","A-P- Meulage"]
[null,null,"416","A-P- Dém. Marteau Piqueur"]
[null,null,"417","A-P- Dém.Tramac Bobcat"]
[null,null,"418","A-P- Dém. Tramac Pelle"]
[null,null,"419","A-P- Dém. Sans Tramac"]
[null,null,"420","A-P- Dém. Machoire"]
[null,null,"421","A-P- Dém. Générale"]
[null,null,"422","A-P- Dém. Mécanique"]
[null,null,"423","A-P- Arrosage"]
[null,null,"427","A-P- Charger Conteneurs"]
[null,null,"428","A-P- Scarification"]
[null,null,"430","A-P- Enlèvement D'enduit"]
[null,null,"431","A-P- Bassin Filtration"]
[null,null,"432","A-P- Enl. D'isolation Mécanique"]
[null,null,"433","A-P- Nettoy. De Rebuts Démol."]
[null,null,"450","A-P- Trav. Supp."]
[null,null,"500","Dém. Cloison Sèche"]
[null,null,"501","Dém. Mur Bloc"]
[null,null,"502","Dém.Tapis, tuile"]
[null,null,"503","Dém. Céramique"]
[null,null,"504","Dém. Plafond suspendu"]
[null,null,"505","Dém. Joint Scellant"]
[null,null,"506","Dém. Rev. Extérieur"]
[null,null,"511","Cloison Stud Bois / Métal"]
[null,null,"512","Fourrure / barre résiliente"]
[null,null,"513","Isolant, Laine Minérale"]
[null,null,"514","Revêtement Finition"]
[null,null,"515","Pose Solins"]
[null,null,"516","Pose gypse"]
[null,null,"517","Plafond Suspendu"]
[null,null,"518","Portes Cadres"]
[null,null,"519","Quincaillerie"]
[null,null,"520","Pose De fenetres"]
[null,null,"521","Peinture"]
[null,null,"522","Tirage De Joints"]
[null,null,"523","Céramique"]
[null,null,"524","Moulures / Plinthes"]
[null,null,"525","Plancher Bois Franc, Flottant"]
[null,null,"526","Tapis, Prélart, Tuiles"]
[null,null,"527","Membrane Autocollante"]
[null,null,"528","Joints Scellant"]
[null,null,"529","Trappes D'Acces"]
[null,null,"530","Installation Mobilier Intégré"]
[null,null,"531","Grille Gratte-Pieds"]
[null,null,"532","Fond De Clouage"]
[null,null,"533","Pare Vapeur"]
[null,null,"534","Toiture"]
[null,null,"535","Patio, Gallerie,Escaliers Bois"]
[null,null,"536","Soffite"]
[null,null,"537","Fascia"]
[null,null,"538","OSB"]
[null,null,"539","Tyvek"]
[null,null,"800","Gestion De Chantier (Surintendant)"]
[null,null,"801","Gestion De Chantier (Contremaitre)"]
[null,null,"802","Chargé De Projet"]
[null,null,"890","Preter En Sous-Traitance"]
[null,null,"900","HD-Transport"]
[null,null,"901","HD-Cours, Formation"]
[null,null,"902","HD-Mécanique Hors Chantier"]
[null,null,"903","HD-Travaux De Menuiseries"]
[null,null,"905","Malade"]
[null,null,"906","Absence Motivée"]
[null,null,"907","Suivi Médical / Traitement"]
[null,null,"908","Travaux Légers"]
[null,null,"950","Covid-Administration"]
[null,null,"951","Covid-Sanitaire Personnel"]
[null,null,"952","Covid-Nettoyage Éléments Non Fixes"]
[null,null,"953","Covid-Nettoyage Espaces & Éléments Fixes"]
[null,null,"954","Covid-Arrêts Dus à La Distanciation Sociale"]
[null,null,"955","Covid-Mobilisation/Démobilisation Équipements"]

{"sheet":"CODES 2022","index":4,"n_rows":75,"n_cols":21,"rows_kept":75,"cut":false,"hidden":false,"merged":[[71,10,72,10],[71,11,72,11],[73,10,74,10],[73,11,74,11],[63,10,64,10],[65,10,66,10],[65,11,66,11],[67,10,68,10],[67,11,68,11],[69,10,70,10],[69,11,70,11],[20,4,20,5],[27,2,27,3],[41,0,41,1],[41,2,41,3],[41,4,41,5],[52,6,52,7],[50,10,50,11],[62,4,62,5],[41,10,41,11],[56,10,56,11],[0,12,1,13],[11,10,11,11],[0,0,0,1],[0,2,0,3],[0,4,0,5],[0,6,0,7],[0,8,0,9],[0,10,0,11]]}
["TRAVAUX PRIMAIRES",null,"NETTOYAGE",null,"BÉTON",null,"TRAVAUX DIVERS",null,"(A-P) AMIANTE, PLOMB",null,"ARCHITECTURE (Démol.)",null,"TYPES D'INTERVENTIONS"]
["000","Organisation Chantier","100","Lavage","200","Décoffrage","300","Travaux Divers","400","(A-P) Organisation","500","Dém. Cloison Sèche"]
["001","Mobilisation","101","Nettoyage De Chantier","201","Coffrage","301","Enlèvement De Pavage","401","(A-P) Douche Et Vestiaires","501","Dém. Mur Bloc","AG","Acier Galvanisé"]
["002","Démobilisation","102","Nettoyage Armature","202","Bétonnage (Camion)","302","Pose De Pavage","402","(A-P) Mur Protection","502","Dém.Tapis, tuile","AMI","Amiante"]
["003","Réception Matériel","103","Nettoyage À L'air","203","Bétonnage (En Sac)","303","Déficiences","403","(A-P) Étaiement","503","Dém. Céramique","ARM","Armature"]
["004","Retour Matériel","104","Lavage À Pression","204","Bétonnage Sacs (Pompe)","304","Poser Joint D'expansion","404","(A-P) Nettoyage","504","Dém. Plafond suspendu","ASC","Ascenceur"]
["005","Étaiement","105","Nett. Balai Mécanique","205","Béton Remblai","305","Chute À Déchets","405","(A-P) Protection Temporaire","505","Dém. Joint Scellant","BAF","Boite Fleur"]
["006","Mur Protection","106","Nett. Rebuts Béton","206","Béton Maigre","306","Jet De Sable","406","(A-P) Chute À Déchets","506","Dém. Rev. Extérieur","BAL","Balcon",null,null,null,null," "]
["007","Protection Générale","107","Nett. Rebuts Pavage","207","Crépi","307","Récupération De Matériaux","407","(A-P) Encapsulation","507",null,"BÉ","Béton"]
["008","Protection Temporaire","108","Nett. Rebuts Excavation","208","Resurfaçage Au Mortier","308","Soudure","408","(A-P) Couper Armature","508",null,"BL","Base lampadaire"]
["009","Accès Et Entretien","109","Nett. Rebuts Secs","209","Murissement","309","Métaux Ouvrés","409","(A-P) Nettoyage D'armature","510","Démolition","BOL","Bolard"]
["010","Clotures Temporaires","110",null,"210","Plastrage","310","Test D'eau","410","(A-P) Lavage A Pression","ARCHITECTURE",null,"BOR","Bordure"]
["011","Échafaudage","111",null,"211","Béton Projeté","311","Poser Miradrain","411","A-P- Sciage, Trait De Scie","511","Cloison Stud Bois / Métal","BRI","Briques"]
["012","Swing Stage","112",null,"212","Meulage De Béton","312","Géotextile","412","(A-P) Meulage","512","Fourrure / barre résiliente","BUC","Bucket Coulée",null,null," "]
["013","Garde-Corps","113",null,"213",null,"313","Gouttieres","413","(A-P) Inst Aire Negative","513","Isolant, Laine Minérale","CA","Canniveau"]
["014","Sécurité","114",null,"214","Anti-Corrosion Armature","314","Enlever Plomberie","414",null,"514","Revêtement Finition","CE","Céramique"]
["015","Ent Mécanique Chantiers","115",null,"215","Inhibiteur De Corrosion","315","Drainage Temporaire","415",null,"515","Pose Solins","CH","Chape"]
["016","Enlever équip. Existants","116",null,"216","Poser Scellant À Béton","316","Installer Drains, Caniveau","416","(A-P) Dém. Marteau Piqueur","516","Pose gypse","CHA","Chapiteau"]
["017","Installer équip. Existants","117",null,"217","Liant A Béton","317","Plomberie","417","(A-P) Dém.Tramac Bobcat","517","Plafond Suspendu","CLE","Clé"]
["018","Aménag. Locaux Chantier","118",null,"218",null,"318","Electricité","418","(A-P) Dém. Tramac Pelle","518","Portes Cadres","CO","Colonnes"]
["019","Sondage, Marquage, Relevé","119",null,"MACONNERIE",null,"319","Temporaire Électrique","419","(A-P) Dém. Sans Tramac","519","Quincaillerie","COF","Coffrage"]
["020","Accueil De Chantier","120",null,"220","Briques, Pierres","320","Caméra De Chantier","420","(A-P) Dém. Machoire","520","Pose De fenetres","CR","Chasses-Roues"]
["021","Arpentage","121"," ","221","Blocs De Béton","321","Lignage","421","(A-P) Dém. Générale","521","Peinture","CRE","Crépi"]
["022","Signaleur","122",null,"222","Rejointements","322","Terrassement","422","(A-P) Dém. Mécanique","522","Tirage De Joints","DA","Dalle"]
["023","Installer Signalisation","123",null,"223","Pose D'Allèges","323","Meulage d'acier","423","Arrosage (A-P)","523","Céramique","DAS","Dalle Au Sol"]
["024","Formation sur Chantiers","124",null,"224","Pose Fer-Angles","324",null,"424",null,"524","Moulures / Plinthes","DD","Dessus Dalle"]
["025",null,"125",null,"225","Démol. (Bri, Pierres, Blocs)","325","Caméra De Chantier","425",null,"525","Plancher Bois Franc, Flottant","DR","Drain"]
["026",null,"HYDRO",null,"226","Lavage (Bri, Pierres, Blocs)","326",null,"426",null,"526","Tapis, Prélart, Tuiles","ECH","Échafaudage",null,null,null," "]
["027","Manipulation / Déplacement Stock","127","Mobil / Install. Hydro","227","Manutention (Bri, Pierres, Blocs)","327",null,"427","(A-P) Charger Conteneurs","527","Membrane Autocollante","EDCB","Étaiement Dalle Coulée"]
["028","Injection Epoxy","128","Hydro Lav. Pression","228","Joints de scellant (B-P-B)","328",null,"428","(A-P) Scarification","528","Joints Scellant","ES","Escalier"]
["029","Percer Trous Béton Injecté","129","Spinjet","229","Membrane Autocollante","329",null,"429",null,"529","Trappes D'Acces","EST","Estrade"]
["030","Grout Pour Structure d'acier","130","Robot","230","Solins","330","Forage Ancrages Au Roc","430","(A-P) Enlèvement D'enduit","530","Installation Mobilier Intégré","FC","Fibro Ciment"]
["031",null,"131","Lance - Gun","231","Setup de Briques","331","Installer Ancrages Au Roc","431","(A-P) Bassin Filtration","531","Grille Gratte-Pieds","FEN","Fenetre"]
["032",null,"132","Nettoyage Apres Spinjet","232","Fabrication de Birques","332","Injection Ancrages Au Roc","432","(A-P) Enl. D'isolation Mécanique","532","Fond De Clouage","GC","Garde-Corps",null,null,null,null," "]
["033",null,"133","Hydro Nett. Armature","233",null,"333","Poser Filet Métallique","433","(A-P) Nettoy. De Rebuts Démol.","533","Pare Vapeur","GGP","Grille Gratte-Pied"]
["034",null,"134","Hydro - Enlev. Isolant","234",null,"334",null,"434",null,"534","Toiture","GRA","Gravier"]
["035",null,"135","Hydro - Enlev. Peinture","235",null,"335",null,"435",null,"535","Patio, Gallerie,Escaliers Bois","HSS","HSS"]
["036",null,"136","Bassin De Filtration","236",null,"336",null,"436",null,"536","Soffite","HYD","Hydro",null,null,null,null,null,null," "]
["037",null,"137",null,"237",null,"337",null,"437",null,"537","Fascia","JC","Joint Contrôle"]
["038",null,"138",null,"238",null,"338",null,"438",null,"538","OSB","JD","Joint Dilatation"]
["039",null,"139",null,"239",null,"339",null,"439",null,"539","Tyvek","MAUT","Membarne Autocollante"]
["DÉMOLITION",null,"ARMATURE",null,"MEMBRANE ET PRÉPARATION",null,null,null,"440",null,"GESTION",null,"MBL","Murs De Blocs"]
["050","Démolition Générale","150","Poser Armature","250","Blastrac","350","Travaux Supplémentaires","441",null,"800","Gestion De Chantier (Surintendant)","ME","Membrane"]
["051","Dém. Marteau Piqueur","151","Ancrages Pour Armature","251","Meulage de dalle","351","Travaux a L'Heure","442",null,"801","Gestion De Chantier (Contremaitre)","MEC","Démolition Mécanique"]
["052","Dém. Tramac","152","Ancrages À Gunite","252","Membrane Mince (Pose)","352","Commission","443",null,"802","Chargé De Projet","MG20","MG20"]
["053","Dém. Pelle (Sans Tramac)","153","Treillis Métallique","253","Membrane Soudée","353",null,"444",null,null,null,"MSEC","Matériaux Secs",null,null,null,null," "]
["054","Dém. Machoire","154","Poser Manchons","254","Lamelles De Carbone","354",null,"445",null,"890","Preter En Sous-Traitance","MU","Mur"]
["055","Scarification","155","Couper Armature","255","Époxy","355","Étaiement Spécial","446",null,null,null,"MURE","Muret"]
["056","Curetage Béton (Bobcat)","156","Ancrages Mécaniques","256","Miracote, Enduit, Adex, Dryvit","356",null,"447",null,null,null,"NEI","Neige"]
["057","Enlev. Membrane (Bobcat)","157","Ancrages Dans L'Époxy","257","Resurf. époxy - Membrane","357",null,"448",null,null,null,"OSB","OSB"]
["058","Curetage Béton","158",null,"258","Ouvrir Fissure","358",null,"449",null,"(HD) HORS DÉCRET",null,"PAR","Parapet"]
["059","Démolition Métaux","159",null,"259","Remplir Fissure","359",null,"450","(A-P) Trav. Supp.","900","(HD) Transport, Déplacement","PASS","Passerelle"]
["060","Démolition Toitures","160",null,"260","Enlevement Membrane","HIVER",null,"451",null,"901","(HD) Cours, Formation","PAT","Patches"]
["061","Sciage / Trait Scie","161",null,"261",null,"361","Déneigement","452",null,"902","(HD) Mécanique Hors Chantier","PAV","Pavage"]
["062","Enlèvem. D'isolant","162",null,"262",null,"362","Protection Chauffage","453",null,"903","(HD) Travaux De Menuiseries","PAVÉ","Pavé"]
["063","Dém. Mécanique","163",null,"263",null,"363","Ravitaillement Chauffage","454",null,"904",null,"PE","Pleine Épaisseur"]
["064","Bouchardage","164",null,"264",null,"364","Installer Chauffage","455",null,"ABSENCES DIVERSES",null,"PIS","Piscine"]
["065",null,"165",null,"265","Nettoyage Aspirateur","365","Protection Temps Froid","456",null,"905","Malade","PL","Dessous Dalle"]
["066",null,"166",null,"266",null,"366",null,"457",null,"906","Absence Motivée","PLB","Plancher Bois"]
["067",null,"167",null,"267",null,"367",null,"458",null,"907","Suivi Médical / Traitement","PO","Poutres"]
["068",null,"168",null,"268",null,"368",null,"459",null,"908","Travaux Légers","RAM","Rampe"]
["069",null,"169",null,"269",null,"369",null,"460",null,"913",null,"RE","Remblai"]
["070","Arrosage Pour Démolition","170",null,"HTC",null,"370",null,"461",null,"914",null,"ROC","Roc"]
["071","Charger Camions","171",null,"271","HTC Enl. Membrane","371",null,"462",null,"950","Gestion, Administration COVID (Tous Les Papiers à Remplir, Formations, etc.)","SAB","Sable"]
["072","Charger Conteneurs","172",null,"272","HTC Polissage ","372",null,"463",null,null,null,"SE","Semelle"]
["073","Compaction","173",null,"273","HTC Enl. De Béton","373",null,"464",null,"951","Pertes De Temps Reliés Au Nettoyage Sanitaire Des Individus (Nettoyage Des Mains, Port De Masque, etc.)","TE","Terre"]
["074","Remblai","174",null,"274","HTC Nettoyage","374",null,"465",null,null,null,"TOI","Toiture"]
["075","Excavation","175",null,"275",null,"375",null,"466",null,952,"Nettoyage Des Éléments Non Fixes (Équipements, Camions, Outils, etc.)","TR","Transition"]
["076",null,"176",null,"276",null,"376",null,"467",null,null,null,"TRO","Trottoir"]
["077",null,"177",null,"277",null,"377",null,"468",null,953,"Nettoyage Des Espaces Et Éléments Fixes (Mobilier, Roulottes, Toilette Locaux Divers)","TYV","Tyvek"]
["078",null,"178",null,"278",null,"378",null,"469"]
["079",null,"179",null,"279",null,"379",null,"470",null,954,"Pertes De Temps Reliés Aux Mesures (Arrêts Dus à La Distanciation Sociale)"]
["090","Aucune Tache","180",null,"280",null,"380",null,"471",null,"910",null,null,null,null,null,null,null,null," "]
["091","Perte De Temps","181",null,"281",null,"381",null,"471",null,955,"Mobilisation / Démobilisation Des Équipements COVID"]
["092",null,"182",null,"282",null,"382",null,"472"]